[Event "Late-Titled-Tuesday-Blitz-May-14-2024"]
[Site "Chess.com"]
[Date "2024.05.14"]
[Round "10"]
[White "Szparu"]
[Black "Hamisandwich"]
[Result "1-0"]
[WhiteElo "2897"]
[BlackElo "2749"]
[TimeControl "180+1"]
[EndTime "15:54:25 PDT"]
[Termination "Szparu won by checkmate"]

1. e4 {[%clk 0:03:00.9]} 1... c6 {[%clk 0:02:56.3]} 2. d4 {[%clk 0:03:00.5]}
2... a6 {[%clk 0:02:55.2]} 3. Bd3 {[%clk 0:02:59.7]} 3... d5 {[%clk 0:02:52.6]}
4. e5 {[%clk 0:02:59.9]} 4... c5 {[%clk 0:02:49.1]} 5. dxc5 {[%clk 0:02:54.7]}
5... e6 {[%clk 0:02:44.7]} 6. a3 {[%clk 0:02:45.9]} 6... Nd7 {[%clk 0:02:42]} 7.
Nf3 {[%clk 0:02:41.5]} 7... Nxc5 {[%clk 0:02:38.5]} 8. Be2 {[%clk 0:02:38]} 8...
Ne7 {[%clk 0:02:35.5]} 9. O-O {[%clk 0:02:37.8]} 9... Nf5 {[%clk 0:02:26.7]} 10.
Re1 {[%clk 0:02:37]} 10... Be7 {[%clk 0:02:25.7]} 11. b4 {[%clk 0:02:37.1]}
11... Nd7 {[%clk 0:02:23.6]} 12. Bd3 {[%clk 0:02:37.4]} 12... Nb6 {[%clk
0:02:16.8]} 13. Nbd2 {[%clk 0:02:36.1]} 13... Bd7 {[%clk 0:02:07.2]} 14. Qe2
{[%clk 0:02:25]} 14... Rc8 {[%clk 0:01:55.4]} 15. g4 {[%clk 0:02:08.2]} 15...
Nh4 {[%clk 0:01:54.2]} 16. Nxh4 {[%clk 0:02:08]} 16... Bxh4 {[%clk 0:01:55.1]}
17. Nf3 {[%clk 0:02:07.5]} 17... Be7 {[%clk 0:01:53.9]} 18. g5 {[%clk
0:02:00.5]} 18... Nc4 {[%clk 0:01:45.2]} 19. Kg2 {[%clk 0:01:58.5]} 19... a5
{[%clk 0:01:25.2]} 20. Rb1 {[%clk 0:01:57.7]} 20... axb4 {[%clk 0:01:23.8]} 21.
axb4 {[%clk 0:01:58.6]} 21... Qb6 {[%clk 0:01:17.7]} 22. h4 {[%clk 0:01:58.5]}
22... Bb5 {[%clk 0:00:44.4]} 23. h5 {[%clk 0:01:56.7]} 23... Kd7 {[%clk
0:00:44.4]} 24. Kh3 {[%clk 0:01:49.9]} 24... Ra8 {[%clk 0:00:43.4]} 25. Be3
{[%clk 0:01:48.6]} 25... Qc7 {[%clk 0:00:30.2]} 26. Nd4 {[%clk 0:01:45.9]} 26...
Ba4 {[%clk 0:00:30.6]} 27. f4 {[%clk 0:01:43.3]} 27... b5 {[%clk 0:00:26.6]} 28.
Bf2 {[%clk 0:01:43.2]} 28... g6 {[%clk 0:00:26.5]} 29. Kg2 {[%clk 0:01:19.6]}
29... Rab8 {[%clk 0:00:25.7]} 30. Qg4 {[%clk 0:01:17.1]} 30... Na3 {[%clk
0:00:17.4]} 31. Ra1 {[%clk 0:01:10.1]} 31... Bxb4 {[%clk 0:00:15.5]} 32. hxg6
{[%clk 0:01:06.2]} 32... hxg6 {[%clk 0:00:15.3]} 33. Bxg6 {[%clk 0:01:07.1]}
33... Ke7 {[%clk 0:00:07.8]} 34. Bxf7 {[%clk 0:01:05.8]} 34... Kxf7 {[%clk
0:00:05.7]} 35. Qxe6+ {[%clk 0:01:06]} 35... Kf8 {[%clk 0:00:05.4]} 36. Rh1
{[%clk 0:00:59]} 36... Rg8 {[%clk 0:00:03]} 37. g6 {[%clk 0:00:32.7]} 37... Qe7
{[%clk 0:00:02.7]} 38. f5 {[%clk 0:00:23.3]} 38... Qxe6 {[%clk 0:00:02.3]} 39.
Nxe6+ {[%clk 0:00:23.7]} 39... Ke8 {[%clk 0:00:03.2]} 40. Rh7 {[%clk 0:00:21.8]}
40... Nxc2 {[%clk 0:00:03.3]} 41. Bh4 {[%clk 0:00:18.7]} 41... Rb6 {[%clk
0:00:02.8]} 42. Nc7+ {[%clk 0:00:18.4]} 42... Kf8 {[%clk 0:00:02.7]} 43. Rf7#
{[%clk 0:00:18.9]} 1-0

[Event "Late-Titled-Tuesday-Blitz-May-14-2024"]
[Site "Chess.com"]
[Date "2024.05.14"]
[Round "10"]
[White "wild3000"]
[Black "MalcolmPein"]
[Result "1-0"]
[WhiteElo "2466"]
[BlackElo "2314"]
[TimeControl "180+1"]
[EndTime "15:54:26 PDT"]
[Termination "wild3000 won on time"]

1. c4 {[%clk 0:02:59.3]} 1... f5 {[%clk 0:02:54.4]} 2. h4 {[%clk 0:02:57.5]}
2... Nf6 {[%clk 0:02:53.7]} 3. h5 {[%clk 0:02:57.7]} 3... e6 {[%clk 0:02:49.7]}
4. d3 {[%clk 0:02:55.4]} 4... b6 {[%clk 0:02:49.2]} 5. Nc3 {[%clk 0:02:54.3]}
5... Bb7 {[%clk 0:02:49.5]} 6. h6 {[%clk 0:02:53]} 6... g6 {[%clk 0:02:49.4]} 7.
Bg5 {[%clk 0:02:49.5]} 7... Be7 {[%clk 0:02:49.2]} 8. Nf3 {[%clk 0:02:49.6]}
8... O-O {[%clk 0:02:49]} 9. e3 {[%clk 0:02:43.7]} 9... Ng4 {[%clk 0:02:40.1]}
10. Bxe7 {[%clk 0:02:41.4]} 10... Qxe7 {[%clk 0:02:41]} 11. Be2 {[%clk
0:02:41.1]} 11... Nc6 {[%clk 0:02:38]} 12. Nb5 {[%clk 0:02:36.1]} 12... d6
{[%clk 0:02:29.6]} 13. a3 {[%clk 0:02:35]} 13... Nd8 {[%clk 0:02:29.3]} 14. Qc2
{[%clk 0:02:31.6]} 14... a6 {[%clk 0:02:29.1]} 15. Nc3 {[%clk 0:02:31.1]} 15...
Nf7 {[%clk 0:02:29.5]} 16. b4 {[%clk 0:02:28.5]} 16... Nfxh6 {[%clk 0:02:25.8]}
17. Nh4 {[%clk 0:02:12.3]} 17... Qg5 {[%clk 0:02:10.9]} 18. Bf3 {[%clk
0:02:11.2]} 18... Bxf3 {[%clk 0:01:51.2]} 19. gxf3 {[%clk 0:02:12.1]} 19... Nf6
{[%clk 0:01:38.2]} 20. Ke2 {[%clk 0:02:09.8]} 20... Nh5 {[%clk 0:01:29]} 21.
Rag1 {[%clk 0:02:08.1]} 21... Qf6 {[%clk 0:01:28.9]} 22. Nxg6 {[%clk 0:02:05.6]}
22... hxg6 {[%clk 0:01:28.1]} 23. Rxh5 {[%clk 0:02:05.4]} 23... Kg7 {[%clk
0:01:16]} 24. Rh2 {[%clk 0:02:03.3]} 24... Nf7 {[%clk 0:01:05.9]} 25. f4 {[%clk
0:01:54.5]} 25... Rh8 {[%clk 0:00:57.5]} 26. Rhg2 {[%clk 0:01:54.3]} 26... Rh6
{[%clk 0:00:57]} 27. Qa4 {[%clk 0:01:49.5]} 27... Qe7 {[%clk 0:00:54]} 28. d4
{[%clk 0:01:42.9]} 28... Qe8 {[%clk 0:00:50.4]} 29. Qc2 {[%clk 0:01:35.6]} 29...
Qe7 {[%clk 0:00:43.1]} 30. d5 {[%clk 0:01:33.7]} 30... Qf6 {[%clk 0:00:37.8]}
31. dxe6 {[%clk 0:01:32.7]} 31... Qxe6 {[%clk 0:00:35.8]} 32. Nd5 {[%clk
0:01:31.7]} 32... Rah8 {[%clk 0:00:27.4]} 33. Nxc7 {[%clk 0:01:28.9]} 33... Qf6
{[%clk 0:00:24.4]} 34. Nd5 {[%clk 0:01:28.3]} 34... Qe6 {[%clk 0:00:22]} 35.
Nxb6 {[%clk 0:01:23.4]} 35... a5 {[%clk 0:00:18.4]} 36. Nd5 {[%clk 0:01:22.9]}
36... Rc8 {[%clk 0:00:16.6]} 37. Qb2+ {[%clk 0:01:20]} 37... Kf8 {[%clk
0:00:16.8]} 38. Qd4 {[%clk 0:01:17.2]} 38... Qe4 {[%clk 0:00:15.5]} 39. Qxe4
{[%clk 0:01:12.7]} 39... fxe4 {[%clk 0:00:15.4]} 40. Rc1 {[%clk 0:01:08]} 40...
axb4 {[%clk 0:00:15.2]} 41. axb4 {[%clk 0:01:08.9]} 41... Ra8 {[%clk 0:00:15.8]}
42. Rc2 {[%clk 0:01:05]} 42... Ra1 {[%clk 0:00:15.8]} 43. Nf6 {[%clk 0:01:02.2]}
43... Rhh1 {[%clk 0:00:15.1]} 44. Nxe4 {[%clk 0:01:01.7]} 44... Rhe1+ {[%clk
0:00:10.8]} 45. Kf3 {[%clk 0:01:01.7]} 45... g5 {[%clk 0:00:11]} 46. Nxg5 {[%clk
0:00:59.8]} 46... Nh6 {[%clk 0:00:09.9]} 47. c5 {[%clk 0:00:50.1]} 47... Nf5
{[%clk 0:00:09.5]} 48. Ke4 {[%clk 0:00:48.9]} 48... dxc5 {[%clk 0:00:07.2]} 49.
Kxf5 {[%clk 0:00:48.3]} 49... cxb4 {[%clk 0:00:07.3]} 50. Rb2 {[%clk 0:00:48.4]}
50... Ra5+ {[%clk 0:00:05.2]} 51. Ke4 {[%clk 0:00:46.9]} 1-0

[Event "Late-Titled-Tuesday-Blitz-May-14-2024"]
[Site "Chess.com"]
[Date "2024.05.14"]
[Round "10"]
[White "MaxLeto"]
[Black "Iuckyducky"]
[Result "1-0"]
[WhiteElo "2390"]
[BlackElo "2292"]
[TimeControl "180+1"]
[EndTime "15:54:27 PDT"]
[Termination "MaxLeto won by resignation"]

1. g4 {[%clk 0:02:52]} 1... d5 {[%clk 0:02:59.4]} 2. Bg2 {[%clk 0:02:52]} 2...
e5 {[%clk 0:02:59.4]} 3. d4 {[%clk 0:02:51.3]} 3... e4 {[%clk 0:02:57.7]} 4. c4
{[%clk 0:02:49.8]} 4... c6 {[%clk 0:02:50.7]} 5. Nc3 {[%clk 0:02:50.2]} 5...
Bxg4 {[%clk 0:02:49.1]} 6. Qb3 {[%clk 0:02:44.8]} 6... Na6 {[%clk 0:02:39.9]} 7.
cxd5 {[%clk 0:02:33.8]} 7... cxd5 {[%clk 0:02:22.2]} 8. Nxd5 {[%clk 0:02:22.5]}
8... Be6 {[%clk 0:01:39.3]} 9. Bxe4 {[%clk 0:02:19]} 9... Bb4+ {[%clk
0:01:38.6]} 10. Bd2 {[%clk 0:01:47.6]} 10... Bxd2+ {[%clk 0:01:38.3]} 11. Kxd2
{[%clk 0:01:48.1]} 11... Nf6 {[%clk 0:01:13.7]} 12. Nxf6+ {[%clk 0:01:44.7]}
12... Qxf6 {[%clk 0:01:11.3]} 13. Qxb7 {[%clk 0:01:10.5]} 13... Qxd4+ {[%clk
0:00:59.8]} 14. Ke1 {[%clk 0:01:08.3]} 14... O-O {[%clk 0:00:54.9]} 15. Nf3
{[%clk 0:01:00.9]} 15... Qa4 {[%clk 0:00:31.4]} 16. Qe7 {[%clk 0:00:13.3]} 16...
Qxe4 {[%clk 0:00:26.5]} 17. Qg5 {[%clk 0:00:02.2]} 17... Qb4+ {[%clk 0:00:12.3]}
18. Kf1 {[%clk 0:00:02.1]} 18... Qxb2 {[%clk 0:00:10.6]} 19. Re1 {[%clk
0:00:01.5]} 19... h6 {[%clk 0:00:09.7]} 20. Qg3 {[%clk 0:00:00.8]} 20... Rac8
{[%clk 0:00:08.7]} 21. h4 {[%clk 0:00:01.7]} 21... Rc1 {[%clk 0:00:08.8]} 22.
Rg1 {[%clk 0:00:02.6]} 22... Rxe1+ {[%clk 0:00:08.8]} 23. Nxe1 {[%clk
0:00:03.4]} 23... Bc4 {[%clk 0:00:07.8]} 24. Qf3 {[%clk 0:00:01.9]} 24... Re8
{[%clk 0:00:06.1]} 25. Kg2 {[%clk 0:00:01.5]} 25... Qxe2 {[%clk 0:00:05.3]} 26.
Qg3 {[%clk 0:00:01.8]} 26... Re6 {[%clk 0:00:04.6]} 27. Kh2 {[%clk 0:00:02]}
27... Rg6 {[%clk 0:00:04.8]} 28. Qc3 {[%clk 0:00:01.1]} 28... Rxg1 {[%clk
0:00:03.6]} 29. Kxg1 {[%clk 0:00:02]} 29... Qxe1+ {[%clk 0:00:03.9]} 30. Qxe1
{[%clk 0:00:01.4]} 30... Be6 {[%clk 0:00:03]} 31. Qc3 {[%clk 0:00:02.3]} 31...
Kh7 {[%clk 0:00:01.5]} 32. Qa3 {[%clk 0:00:03.2]} 32... Bc4 {[%clk 0:00:00.4]}
33. Qa4 {[%clk 0:00:03.8]} 33... Be2 {[%clk 0:00:00.6]} 34. Qc2+ {[%clk
0:00:04.1]} 34... g6 {[%clk 0:00:00.2]} 35. Qxe2 {[%clk 0:00:04.7]} 35... Nb4
{[%clk 0:00:00.1]} 36. Qb5 {[%clk 0:00:04.9]} 36... Nd5 {[%clk 0:00:01]} 37.
Qxd5 {[%clk 0:00:05.1]} 1-0

[Event "Late-Titled-Tuesday-Blitz-May-14-2024"]
[Site "Chess.com"]
[Date "2024.05.14"]
[Round "10"]
[White "TheWiscoIndian"]
[Black "Javadovvv"]
[Result "0-1"]
[WhiteElo "2260"]
[BlackElo "2589"]
[TimeControl "180+1"]
[EndTime "15:54:29 PDT"]
[Termination "Javadovvv won by resignation"]

1. Nf3 {[%clk 0:02:51.3]} 1... d5 {[%clk 0:02:57.5]} 2. g3 {[%clk 0:02:49.4]}
2... Nf6 {[%clk 0:02:57.7]} 3. Bg2 {[%clk 0:02:49.8]} 3... e6 {[%clk 0:02:58.1]}
4. O-O {[%clk 0:02:50]} 4... Be7 {[%clk 0:02:58.7]} 5. c4 {[%clk 0:02:50.5]}
5... O-O {[%clk 0:02:58]} 6. d3 {[%clk 0:02:47.8]} 6... b6 {[%clk 0:02:56.5]} 7.
cxd5 {[%clk 0:02:46.8]} 7... Nxd5 {[%clk 0:02:56.6]} 8. Nc3 {[%clk 0:02:45.4]}
8... Bb7 {[%clk 0:02:55.8]} 9. e4 {[%clk 0:02:43.5]} 9... Nf6 {[%clk 0:02:55.2]}
10. Re1 {[%clk 0:02:41.9]} 10... c5 {[%clk 0:02:52.9]} 11. d4 {[%clk 0:02:39.2]}
11... cxd4 {[%clk 0:02:40.9]} 12. Qxd4 {[%clk 0:02:40.1]} 12... Nbd7 {[%clk
0:02:37.9]} 13. Bg5 {[%clk 0:02:29.4]} 13... h6 {[%clk 0:02:31.7]} 14. Bf4
{[%clk 0:02:27.6]} 14... Nc5 {[%clk 0:02:29.2]} 15. Qxd8 {[%clk 0:01:58.1]}
15... Rfxd8 {[%clk 0:02:27.4]} 16. Ne5 {[%clk 0:01:58.5]} 16... Rac8 {[%clk
0:02:17.3]} 17. Rad1 {[%clk 0:01:56.6]} 17... g5 {[%clk 0:02:04.3]} 18. Bc1
{[%clk 0:01:49.2]} 18... Bd6 {[%clk 0:01:59.1]} 19. Nxf7 {[%clk 0:01:41.5]}
19... Kxf7 {[%clk 0:01:55.9]} 20. e5 {[%clk 0:01:40.9]} 20... Bxg2 {[%clk
0:01:51.7]} 21. Kxg2 {[%clk 0:01:37.9]} 21... Bxe5 {[%clk 0:01:48.9]} 22. Rxd8
{[%clk 0:01:22.2]} 22... Rxd8 {[%clk 0:01:49.8]} 23. Rxe5 {[%clk 0:01:22.1]}
23... Nd3 {[%clk 0:01:49.4]} 24. Rb5 {[%clk 0:00:53.5]} 24... Nxc1 {[%clk
0:01:47.4]} 25. a4 {[%clk 0:00:54.2]} 25... Nd5 {[%clk 0:01:36.9]} 26. Ne4
{[%clk 0:00:50.6]} 26... Nd3 {[%clk 0:01:36.1]} 27. a5 {[%clk 0:00:49.7]} 27...
Ke7 {[%clk 0:01:32.9]} 28. axb6 {[%clk 0:00:44.9]} 28... axb6 {[%clk 0:01:33.8]}
29. Rb3 {[%clk 0:00:44.2]} 29... Ne5 {[%clk 0:01:30.9]} 30. Ra3 {[%clk 0:00:43]}
30... Nc4 {[%clk 0:01:26.3]} 31. Ra7+ {[%clk 0:00:39.1]} 31... Rd7 {[%clk
0:01:25.5]} 32. Ra8 {[%clk 0:00:39.8]} 32... Nxb2 {[%clk 0:01:23.8]} 33. Rh8
{[%clk 0:00:40.5]} 33... Nf6 {[%clk 0:01:17.2]} 34. Nc3 {[%clk 0:00:23.6]} 34...
h5 {[%clk 0:01:13.5]} 35. Rb8 {[%clk 0:00:20.9]} 35... Nc4 {[%clk 0:01:12.6]}
36. Na4 {[%clk 0:00:21.4]} 36... Nd5 {[%clk 0:01:11.4]} 37. Rh8 {[%clk
0:00:19.1]} 37... b5 {[%clk 0:01:05.6]} 38. Nc5 {[%clk 0:00:19.1]} 38... Rc7
{[%clk 0:01:05.3]} 39. Rh7+ {[%clk 0:00:18.5]} 39... Kd6 {[%clk 0:01:05]} 40.
Ne4+ {[%clk 0:00:18]} 40... Kc6 {[%clk 0:01:04]} 41. Rh8 {[%clk 0:00:15.3]}
41... b4 {[%clk 0:01:01.8]} 42. Rb8 {[%clk 0:00:14.7]} 42... Rb7 {[%clk
0:01:00.7]} 43. Rc8+ {[%clk 0:00:14.4]} 43... Rc7 {[%clk 0:01:01.3]} 44. Rb8
{[%clk 0:00:14.7]} 44... Ndb6 {[%clk 0:00:58.3]} 45. Rd8 {[%clk 0:00:07.7]}
45... b3 {[%clk 0:00:57]} 46. Nc3 {[%clk 0:00:06.8]} 46... b2 {[%clk 0:00:55.7]}
47. Rg8 {[%clk 0:00:06]} 47... Na4 {[%clk 0:00:53.9]} 48. Nb1 {[%clk 0:00:06]}
48... Rd7 {[%clk 0:00:48.7]} 49. Rxg5 {[%clk 0:00:06.1]} 49... Nd2 {[%clk
0:00:49]} 50. Na3 {[%clk 0:00:05.4]} 50... Rd3 {[%clk 0:00:48]} 51. Nc4 {[%clk
0:00:00.5]} 0-1

[Event "Late-Titled-Tuesday-Blitz-May-14-2024"]
[Site "Chess.com"]
[Date "2024.05.14"]
[Round "10"]
[White "shirovin"]
[Black "gamboajp"]
[Result "0-1"]
[WhiteElo "2091"]
[BlackElo "2046"]
[TimeControl "180+1"]
[EndTime "15:54:32 PDT"]
[Termination "gamboajp won by checkmate"]

1. b3 {[%clk 0:03:00.9]} 1... f6 {[%clk 0:02:56.1]} 2. Bb2 {[%clk 0:03:00.3]}
2... e5 {[%clk 0:02:56.5]} 3. d4 {[%clk 0:03:00.6]} 3... d6 {[%clk 0:02:55.6]}
4. e3 {[%clk 0:02:56.6]} 4... g6 {[%clk 0:02:55.9]} 5. dxe5 {[%clk 0:02:49.6]}
5... dxe5 {[%clk 0:02:51.1]} 6. Qxd8+ {[%clk 0:02:45.7]} 6... Kxd8 {[%clk
0:02:51.3]} 7. Nd2 {[%clk 0:02:44.9]} 7... c6 {[%clk 0:02:48.4]} 8. O-O-O {[%clk
0:02:44.1]} 8... Kc7 {[%clk 0:02:48.7]} 9. f4 {[%clk 0:02:41.6]} 9... Bg4 {[%clk
0:02:39]} 10. Be2 {[%clk 0:02:40.2]} 10... Bxe2 {[%clk 0:02:35.3]} 11. Nxe2
{[%clk 0:02:39.8]} 11... Nd7 {[%clk 0:02:27]} 12. Nc4 {[%clk 0:02:37.2]} 12...
b5 {[%clk 0:01:55.1]} 13. Nd2 {[%clk 0:02:31.5]} 13... Bc5 {[%clk 0:01:44.8]}
14. Nf1 {[%clk 0:02:20.8]} 14... Nh6 {[%clk 0:01:38.8]} 15. fxe5 {[%clk
0:02:08.1]} 15... Nxe5 {[%clk 0:01:33.6]} 16. Bd4 {[%clk 0:01:59.2]} 16... Ba3+
{[%clk 0:01:31.7]} 17. Kb1 {[%clk 0:01:56.6]} 17... Nhg4 {[%clk 0:01:31.7]} 18.
Rg1 {[%clk 0:01:46]} 18... Nf2 {[%clk 0:01:26.3]} 19. Rd2 {[%clk 0:01:40.7]}
19... Ne4 {[%clk 0:01:26.1]} 20. Rd1 {[%clk 0:01:38.9]} 20... c5 {[%clk
0:01:18.3]} 21. Bxe5+ {[%clk 0:01:31.9]} 21... fxe5 {[%clk 0:01:18.5]} 22. Nfg3
{[%clk 0:01:32.4]} 22... Nd6 {[%clk 0:01:09]} 23. Rd5 {[%clk 0:01:26.6]} 23...
Rhe8 {[%clk 0:00:59.4]} 24. Rgd1 {[%clk 0:01:24.2]} 24... Rad8 {[%clk
0:00:59.2]} 25. Nc3 {[%clk 0:01:04.1]} 25... a6 {[%clk 0:00:58.4]} 26. Nce4
{[%clk 0:01:02.6]} 26... Nxe4 {[%clk 0:00:46]} 27. Nxe4 {[%clk 0:00:59.1]} 27...
c4 {[%clk 0:00:24.7]} 28. Rxd8 {[%clk 0:00:52.8]} 28... Rxd8 {[%clk 0:00:24.6]}
29. Rxd8 {[%clk 0:00:52.8]} 29... Kxd8 {[%clk 0:00:25]} 30. bxc4 {[%clk
0:00:52.3]} 30... bxc4 {[%clk 0:00:24.9]} 31. Nf6 {[%clk 0:00:51.6]} 31... h5
{[%clk 0:00:22.6]} 32. Ne4 {[%clk 0:00:49.9]} 32... Ke7 {[%clk 0:00:20.8]} 33.
c3 {[%clk 0:00:49.7]} 33... Ke6 {[%clk 0:00:17.8]} 34. Ng5+ {[%clk 0:00:46.3]}
34... Kf5 {[%clk 0:00:17.9]} 35. Nf7 {[%clk 0:00:46]} 35... Ke4 {[%clk 0:00:16]}
36. Nd6+ {[%clk 0:00:45]} 36... Kd3 {[%clk 0:00:15.2]} 37. Nf7 {[%clk 0:00:35]}
37... e4 {[%clk 0:00:15.4]} 38. Nh8 {[%clk 0:00:29.7]} 38... Kxc3 {[%clk
0:00:14.7]} 39. Nxg6 {[%clk 0:00:27.2]} 39... Kd2 {[%clk 0:00:15.1]} 40. Nf4
{[%clk 0:00:25.5]} 40... c3 {[%clk 0:00:14.7]} 41. Ne2 {[%clk 0:00:18.2]} 41...
c2+ {[%clk 0:00:14.9]} 42. Ka1 {[%clk 0:00:09.8]} 42... c1=Q+ {[%clk 0:00:14.9]}
43. Nxc1 {[%clk 0:00:08.9]} 43... Kxc1 {[%clk 0:00:14.9]} 44. g3 {[%clk
0:00:07.1]} 44... Bb2# {[%clk 0:00:15.2]} 0-1

[Event "Late-Titled-Tuesday-Blitz-May-14-2024"]
[Site "Chess.com"]
[Date "2024.05.14"]
[Round "10"]
[White "ural58"]
[Black "SahaNeelash"]
[Result "0-1"]
[WhiteElo "2469"]
[BlackElo "2686"]
[TimeControl "180+1"]
[EndTime "15:54:35 PDT"]
[Termination "SahaNeelash won by resignation"]

1. e4 {[%clk 0:02:56.1]} 1... e6 {[%clk 0:02:59.2]} 2. d4 {[%clk 0:02:55.3]}
2... d5 {[%clk 0:02:59.8]} 3. Nc3 {[%clk 0:02:55.1]} 3... Bb4 {[%clk 0:03:00]}
4. Ne2 {[%clk 0:02:54.2]} 4... dxe4 {[%clk 0:02:52.4]} 5. a3 {[%clk 0:02:53.7]}
5... Bxc3+ {[%clk 0:02:52.7]} 6. Nxc3 {[%clk 0:02:53.7]} 6... Nf6 {[%clk
0:02:53.4]} 7. Bg5 {[%clk 0:02:51.3]} 7... h6 {[%clk 0:02:47.2]} 8. Bxf6 {[%clk
0:02:50.5]} 8... Qxf6 {[%clk 0:02:48.1]} 9. Nxe4 {[%clk 0:02:50]} 9... Qg6
{[%clk 0:02:48.3]} 10. Qf3 {[%clk 0:02:43]} 10... O-O {[%clk 0:02:42.8]} 11. Bd3
{[%clk 0:02:42.3]} 11... Nc6 {[%clk 0:02:31.6]} 12. c3 {[%clk 0:02:32.6]} 12...
e5 {[%clk 0:02:25.6]} 13. d5 {[%clk 0:02:28.1]} 13... Ne7 {[%clk 0:02:24.7]} 14.
Nc5 {[%clk 0:01:50.3]} 14... f5 {[%clk 0:02:22.7]} 15. Bc4 {[%clk 0:01:49.7]}
15... Qd6 {[%clk 0:02:16.9]} 16. Ne6 {[%clk 0:01:41.5]} 16... Bxe6 {[%clk
0:02:13]} 17. dxe6 {[%clk 0:01:41.6]} 17... e4 {[%clk 0:02:13.3]} 18. Qg3 {[%clk
0:01:38.3]} 18... f4 {[%clk 0:01:56.1]} 19. Qg4 {[%clk 0:01:33.5]} 19... Qc5
{[%clk 0:01:51.1]} 20. Ba2 {[%clk 0:01:32]} 20... Rad8 {[%clk 0:01:46.7]} 21.
O-O {[%clk 0:01:31.2]} 21... Rd2 {[%clk 0:01:46.6]} 22. Rab1 {[%clk 0:01:15.3]}
22... Kh7 {[%clk 0:01:27.6]} 23. c4 {[%clk 0:01:13.9]} 23... Rf5 {[%clk
0:01:22.3]} 24. Rbd1 {[%clk 0:01:03.7]} 24... Rxb2 {[%clk 0:01:20.6]} 25. Bb1
{[%clk 0:01:03.3]} 25... Qe5 {[%clk 0:01:11.1]} 26. Rfe1 {[%clk 0:00:59.8]}
26... Rxb1 {[%clk 0:00:41]} 27. Rxb1 {[%clk 0:00:59]} 27... Rg5 {[%clk
0:00:41.5]} 28. Qd1 {[%clk 0:00:58.8]} 28... Qxe6 {[%clk 0:00:36]} 29. Rxb7
{[%clk 0:00:55.8]} 29... Ng6 {[%clk 0:00:35.1]} 30. Rb5 {[%clk 0:00:30]} 30...
c5 {[%clk 0:00:07.9]} 31. f3 {[%clk 0:00:16.9]} 31... Qh3 {[%clk 0:00:06.8]} 32.
Qd2 {[%clk 0:00:13.5]} 32... exf3 {[%clk 0:00:06.4]} 33. Rb2 {[%clk 0:00:08]}
33... Rxg2+ {[%clk 0:00:06.6]} 34. Qxg2 {[%clk 0:00:08.6]} 34... fxg2 {[%clk
0:00:07.5]} 35. Rxg2 {[%clk 0:00:08.8]} 35... Nh4 {[%clk 0:00:07.1]} 36. Rf2
{[%clk 0:00:07.4]} 36... Nf3+ {[%clk 0:00:06.7]} 37. Rxf3 {[%clk 0:00:06.4]}
37... Qxf3 {[%clk 0:00:07.6]} 38. Rf1 {[%clk 0:00:06.4]} 38... Qe3+ {[%clk
0:00:07.9]} 39. Kg2 {[%clk 0:00:07]} 39... g5 {[%clk 0:00:08.5]} 0-1

[Event "Late-Titled-Tuesday-Blitz-May-14-2024"]
[Site "Chess.com"]
[Date "2024.05.14"]
[Round "10"]
[White "MuhittinBuker"]
[Black "Christian-Toth"]
[Result "0-1"]
[WhiteElo "2237"]
[BlackElo "2385"]
[TimeControl "180+1"]
[EndTime "15:54:37 PDT"]
[Termination "Christian-Toth won on time"]

1. d4 {[%clk 0:03:00.9]} 1... d5 {[%clk 0:02:59.6]} 2. c4 {[%clk 0:03:00.8]}
2... e6 {[%clk 0:02:58.7]} 3. Nc3 {[%clk 0:03:00.7]} 3... c5 {[%clk 0:02:59.2]}
4. cxd5 {[%clk 0:03:00.2]} 4... exd5 {[%clk 0:03:00.1]} 5. Nf3 {[%clk
0:03:00.4]} 5... Nf6 {[%clk 0:03:00]} 6. g3 {[%clk 0:03:00.5]} 6... Nc6 {[%clk
0:02:59]} 7. Bg2 {[%clk 0:03:00.9]} 7... Be7 {[%clk 0:02:59.3]} 8. O-O {[%clk
0:02:44.1]} 8... O-O {[%clk 0:02:57.2]} 9. dxc5 {[%clk 0:02:42.1]} 9... Bxc5
{[%clk 0:02:55.4]} 10. Bg5 {[%clk 0:02:42.5]} 10... d4 {[%clk 0:02:44.6]} 11.
Ne4 {[%clk 0:02:21.5]} 11... Be7 {[%clk 0:02:30.9]} 12. Nxf6+ {[%clk 0:02:15.4]}
12... Bxf6 {[%clk 0:02:31.8]} 13. Bxf6 {[%clk 0:02:15.6]} 13... Qxf6 {[%clk
0:02:31.6]} 14. Qd3 {[%clk 0:02:15.8]} 14... Bf5 {[%clk 0:02:30.2]} 15. Qb3
{[%clk 0:02:14.7]} 15... Qe7 {[%clk 0:02:03.5]} 16. Rfd1 {[%clk 0:02:12.7]}
16... Rad8 {[%clk 0:02:02.1]} 17. Rd2 {[%clk 0:02:11.5]} 17... Rd6 {[%clk
0:01:59.2]} 18. Rad1 {[%clk 0:02:11.7]} 18... Rfd8 {[%clk 0:01:59]} 19. Qa4
{[%clk 0:01:54.8]} 19... Qf6 {[%clk 0:01:31.5]} 20. b4 {[%clk 0:01:44.8]} 20...
a6 {[%clk 0:01:27]} 21. Qb3 {[%clk 0:01:38.5]} 21... b5 {[%clk 0:01:21.3]} 22.
a4 {[%clk 0:01:37.2]} 22... h6 {[%clk 0:01:16.1]} 23. axb5 {[%clk 0:01:36.3]}
23... axb5 {[%clk 0:01:17]} 24. Qa3 {[%clk 0:01:27.6]} 24... g5 {[%clk 0:01:09]}
25. Ne1 {[%clk 0:01:18.2]} 25... Ne5 {[%clk 0:01:03.6]} 26. Qa1 {[%clk
0:01:00.2]} 26... Nc4 {[%clk 0:01:02]} 27. Ra2 {[%clk 0:00:58.3]} 27... Kg7
{[%clk 0:00:47.7]} 28. Nd3 {[%clk 0:00:57.6]} 28... Bxd3 {[%clk 0:00:45.8]} 29.
exd3 {[%clk 0:00:56]} 29... Ne5 {[%clk 0:00:45.7]} 30. Ra7 {[%clk 0:00:48.9]}
30... Qf5 {[%clk 0:00:40.6]} 31. Be4 {[%clk 0:00:44.8]} 31... Qh3 {[%clk
0:00:40.5]} 32. Qa2 {[%clk 0:00:34.5]} 32... Rf6 {[%clk 0:00:34.8]} 33. Qe2
{[%clk 0:00:31.5]} 33... Ng4 {[%clk 0:00:32.4]} 34. f3 {[%clk 0:00:27.3]} 34...
Ne3 {[%clk 0:00:32.1]} 35. Rda1 {[%clk 0:00:26.2]} 35... Rc8 {[%clk 0:00:30.7]}
36. R7a2 {[%clk 0:00:16.3]} 36... Rc3 {[%clk 0:00:30.2]} 37. Rb2 {[%clk
0:00:13.1]} 37... h5 {[%clk 0:00:29]} 38. Kh1 {[%clk 0:00:09.3]} 38... g4 {[%clk
0:00:25.5]} 39. f4 {[%clk 0:00:06.9]} 39... h4 {[%clk 0:00:24.3]} 40. Bg2 {[%clk
0:00:06.5]} 40... Nxg2 {[%clk 0:00:24.3]} 41. Qxg2 {[%clk 0:00:06.7]} 41...
Qxg2+ {[%clk 0:00:23.2]} 42. Kxg2 {[%clk 0:00:06.5]} 42... h3+ {[%clk
0:00:23.3]} 43. Kf2 {[%clk 0:00:05.9]} 43... Rxd3 {[%clk 0:00:23.7]} 44. Ra5
{[%clk 0:00:05.3]} 44... Re6 {[%clk 0:00:18.8]} 45. Rxb5 {[%clk 0:00:02.9]}
45... Rf3+ {[%clk 0:00:18.6]} 0-1